[Event "30e Open International de Saint Affrique"]
[Site "Saint Affrique, France"]
[Date "2024.07.22"]
[Round "4.1"]
[White "Flear, Glenn"]
[Black "Kim, Jisu"]
[Result "1-0"]
[TimeControl "1h30/40 + 30min + sec/mv"]
[WhiteTitle "GM"]
[WhiteElo "2390"]
[BlackElo "2077"]

1. d4 {[%clk 01:30:56]} {[%emt 00:00:03]} d5 {[%clk 01:30:51]} {[%emt
00:00:10]} 2. c4 {[%clk 01:31:16]} {[%emt 00:00:09]} dxc4 {[%clk 01:31:09]}
{[%emt 00:00:12]} 3. e3 {[%clk 01:31:19]} {[%emt 00:00:28]} Nf6 {[%clk
01:31:22]} {[%emt 00:00:16]} 4. Bxc4 {[%clk 01:31:41]} {[%emt 00:00:08]} e6
{[%clk 01:31:43]} {[%emt 00:00:09]} 5. Nf3 {[%clk 01:31:57]} {[%emt 00:00:14]}
c5 {[%clk 01:31:32]} {[%emt 00:00:42]} 6. O-O {[%clk 01:31:46]} {[%emt
00:00:41]} cxd4 {[%clk 01:31:37]} {[%emt 00:00:25]} 7. exd4 {[%clk 01:31:35]}
{[%emt 00:00:40]} Be7 {[%clk 01:31:52]} {[%emt 00:00:15]} 8. Nc3 {[%clk
01:29:20]} {[%emt 00:02:46]} O-O {[%clk 01:31:56]} {[%emt 00:00:26]} 9. Re1
{[%clk 01:28:13]} {[%emt 00:01:37]} Nc6 {[%clk 01:31:57]} {[%emt 00:00:29]} 10.
a3 {[%clk 01:13:00]} {[%emt 00:15:43]} b6 {[%clk 01:31:57]} {[%emt 00:00:30]}
11. Qd3 {[%clk 01:07:25]} {[%emt 00:06:05]} Bb7 {[%clk 01:31:29]} {[%emt
00:00:58]} 12. Bg5 {[%clk 01:06:18]} {[%emt 00:01:37]} h6 {[%clk 01:22:16]}
{[%emt 00:09:43]} 13. Bf4 {[%clk 01:01:57]} {[%emt 00:04:52]} Rc8 {[%clk
01:17:07]} {[%emt 00:05:38]} 14. Rad1 {[%clk 01:01:06]} {[%emt 00:01:21]} Bd6
{[%clk 00:59:30]} {[%emt 00:18:07]} 15. Bc1 {[%clk 00:56:34]} {[%emt 00:05:02]}
Ne7 {[%clk 00:54:19]} {[%emt 00:05:41]} 16. Ba2 {[%clk 00:55:41]} {[%emt
00:01:23]} Ned5 {[%clk 00:47:24]} {[%emt 00:17:01]} 17. Ne5 {[%clk 00:51:12]}
Nxc3 {[%clk 00:37:28]} {[%emt 00:05:49]} 18. bxc3 {[%clk 00:48:36]} {[%emt
00:03:05]} Qc7 {[%clk 00:37:33]} {[%emt 00:00:25]} 19. c4 {[%clk 00:42:44]}
{[%emt 00:06:22]} Rfd8 {[%clk 00:33:56]} {[%emt 00:04:07]} 20. f4 {[%clk
00:36:04]} {[%emt 00:07:10]} Bf8 {[%clk 00:31:00]} {[%emt 00:03:25]} 21. Kh1
{[%clk 00:33:39]} {[%emt 00:02:54]} g6 {[%clk 00:24:58]} {[%emt 00:06:33]} 22.
Bb2 {[%clk 00:19:00]} {[%emt 00:15:09]} Bg7 {[%clk 00:24:16]} {[%emt 00:01:12]}
23. Bb1 {[%clk 00:16:34]} {[%emt 00:02:56]} a6 {[%clk 00:22:49]} {[%emt
00:01:58]} 24. Rc1 {[%clk 00:15:21]} {[%emt 00:01:43]} h5 {[%clk 00:20:25]}
{[%emt 00:02:54]} 25. Re2 {[%clk 00:13:56]} {[%emt 00:01:54]} b5 {[%clk
00:19:55]} {[%emt 00:01:00]} 26. c5 {[%clk 00:12:28]} {[%emt 00:01:58]} Nd5
{[%clk 00:17:37]} {[%emt 00:02:48]} 27. Rf1 {[%clk 00:11:52]} {[%emt 00:01:06]}
Ne7 {[%clk 00:17:34]} {[%emt 00:00:33]} 28. Qh3 {[%clk 00:09:42]} {[%emt
00:02:39]} Bd5 {[%clk 00:17:10]} {[%emt 00:00:54]} 29. Rfe1 {[%clk 00:08:28]}
{[%emt 00:01:44]} Nc6 {[%clk 00:09:37]} {[%emt 00:08:04]} 30. Qg3 {[%clk
00:06:51]} {[%emt 00:02:06]} Qe7 {[%clk 00:08:17]} {[%emt 00:01:50]} 31. Nxc6
{[%clk 00:05:22]} {[%emt 00:01:59]} Rxc6 {[%clk 00:08:15]} {[%emt 00:00:32]} 32.
f5 {[%clk 00:05:27]} {[%emt 00:00:26]} gxf5 {[%clk 00:05:56]} {[%emt 00:02:49]}
33. Bxf5 {[%clk 00:05:46]} {[%emt 00:00:11]} Qc7 {[%clk 00:03:57]} {[%emt
00:02:29]} 34. Qxc7 {[%clk 00:04:07]} {[%emt 00:02:10]} Rxc7 {[%clk 00:04:21]}
{[%emt 00:00:06]} 35. Bc2 {[%clk 00:02:31]} {[%emt 00:02:05]} Bc4 {[%clk
00:04:13]} {[%emt 00:00:38]} 36. Re4 {[%clk 00:02:54]} {[%emt 00:00:08]} Rcd7
{[%clk 00:04:00]} {[%emt 00:00:42]} 37. Rf4 {[%clk 00:02:12]} {[%emt 00:01:13]}
e5 {[%clk 00:02:09]} {[%emt 00:02:21]} 38. c6 {[%clk 00:02:34]} {[%emt
00:00:08]} exf4 {[%clk 00:01:24]} {[%emt 00:01:14]} 39. cxd7 {[%clk 00:02:59]}
{[%emt 00:00:05]} Rxd7 {[%clk 00:01:39]} {[%emt 00:00:15]} 40. Re8+ {[%clk
00:01:11]} {[%emt 00:02:18]} Bf8 {[%clk 00:01:58]} {[%emt 00:00:11]} 41. Bd1
{[%clk 00:27:01]} {[%emt 00:04:38]} h4 {[%clk 00:29:20]} {[%emt 00:03:10]} 42.
Bc3 {[%clk 00:25:08]} {[%emt 00:02:23]} f6 {[%clk 00:24:26]} {[%emt 00:05:25]}
43. Bb4 {[%clk 00:23:10]} {[%emt 00:02:28]} Rxd4 {[%clk 00:14:21]} {[%emt
00:10:35]} 44. Rxf8+ {[%clk 00:23:08]} {[%emt 00:00:31]} Kg7 {[%clk 00:14:44]}
{[%emt 00:00:07]} 45. Bf3 {[%clk 00:23:07]} {[%emt 00:00:30]} a5 {[%clk
00:14:25]} {[%emt 00:00:51]} 46. Bc5 {[%clk 00:22:55]} {[%emt 00:00:42]} Rd3
{[%clk 00:14:21]} {[%emt 00:00:33]} 47. Ra8 {[%clk 00:20:53]} {[%emt 00:02:32]}
b4 {[%clk 00:14:04]} {[%emt 00:00:47]} 48. axb4 {[%clk 00:20:03]} {[%emt
00:01:20]} axb4 {[%clk 00:12:07]} {[%emt 00:02:27]} 49. Bxb4 {[%clk 00:19:41]}
{[%emt 00:00:52]} Rb3 {[%clk 00:10:18]} {[%emt 00:02:19]} 50. Bf8+ {[%clk
00:19:35]} {[%emt 00:00:35]} Kg6 {[%clk 00:09:28]} {[%emt 00:01:20]} 51. h3
{[%clk 00:19:53]} {[%emt 00:00:11]} Be6 {[%clk 00:09:14]} {[%emt 00:00:45]} 52.
Kh2 {[%clk 00:19:46]} {[%emt 00:00:36]} 1-0

[Event "30e Open International de Saint Affrique"]
[Site "Saint Affrique, France"]
[Date "2024.07.22"]
[Round "4.2"]
[White "Martinez, Felicien"]
[Black "Ciarletta, Ulysse"]
[Result "0-1"]
[TimeControl "1h30/40 + 30min + sec/mv"]
[WhiteElo "1995"]
[BlackElo "2139"]

1. a3 {[%clk 01:30:53]} {[%emt 00:00:07]} d5 {[%clk 01:29:36]} {[%emt
00:01:24]} 2. d4 {[%clk 01:31:07]} {[%emt 00:00:16]} Bf5 {[%clk 01:29:06]}
{[%emt 00:01:00]} 3. Nf3 {[%clk 01:30:28]} {[%emt 00:01:08]} Nf6 {[%clk
01:29:02]} {[%emt 00:00:35]} 4. e3 {[%clk 01:30:15]} {[%emt 00:00:43]} Nbd7
{[%clk 01:28:42]} {[%emt 00:00:50]} 5. c4 {[%clk 01:27:26]} {[%emt 00:03:19]}
e6 {[%clk 01:26:42]} {[%emt 00:02:30]} 6. Nc3 {[%clk 01:27:16]} {[%emt
00:00:40]} c6 {[%clk 01:27:01]} {[%emt 00:00:11]} 7. Be2 {[%clk 01:26:47]}
{[%emt 00:00:59]} Bd6 {[%clk 01:27:22]} {[%emt 00:00:10]} 8. O-O {[%clk
01:24:40]} {[%emt 00:02:36]} h6 {[%clk 01:25:37]} {[%emt 00:02:14]} 9. b4
{[%clk 01:23:55]} {[%emt 00:01:15]} O-O {[%clk 01:25:14]} {[%emt 00:00:53]} 10.
b5 {[%clk 01:16:09]} {[%emt 00:08:17]} Rc8 {[%clk 01:11:40]} {[%emt 00:14:04]}
11. c5 {[%clk 01:13:44]} {[%emt 00:02:55]} Bb8 {[%clk 01:11:29]} {[%emt
00:00:41]} 12. bxc6 {[%clk 01:11:51]} {[%emt 00:02:23]} Rxc6 {[%clk 01:11:22]}
{[%emt 00:00:36]} 13. Qb3 {[%clk 01:10:25]} {[%emt 00:01:56]} Ne4 {[%clk
01:05:58]} {[%emt 00:05:54]} 14. Bb5 {[%clk 01:00:38]} {[%emt 00:10:17]} Rc8
{[%clk 01:05:26]} {[%emt 00:01:02]} 15. Nxe4 {[%clk 00:56:45]} {[%emt
00:04:23]} dxe4 {[%clk 01:05:46]} {[%emt 00:00:09]} 16. Nd2 {[%clk 00:55:49]}
{[%emt 00:01:26]} Nf6 {[%clk 01:05:57]} {[%emt 00:00:20]} 17. f4 {[%clk
00:50:07]} {[%emt 00:06:12]} g5 {[%clk 01:03:23]} {[%emt 00:03:04]} 18. fxg5
{[%clk 00:49:37]} {[%emt 00:01:00]} Ng4 {[%clk 00:55:39]} {[%emt 00:16:18]} 19.
g3 {[%clk 00:47:08]} Qxg5 {[%clk 00:54:27]} 20. Rf4 {[%clk 00:40:46]} {[%emt
00:03:28]} Bxf4 {[%clk 00:52:57]} {[%emt 00:02:01]} 21. exf4 {[%clk 00:39:39]}
{[%emt 00:01:37]} Qh5 {[%clk 00:53:15]} {[%emt 00:00:12]} 22. Nf1 {[%clk
00:37:30]} {[%emt 00:02:38]} Kh7 {[%clk 00:51:23]} {[%emt 00:02:23]} 23. Be3
{[%clk 00:31:01]} {[%emt 00:07:00]} Nf6 {[%clk 00:48:55]} {[%emt 00:02:57]} 24.
Re1 {[%clk 00:28:26]} {[%emt 00:03:05]} Qh3 {[%clk 00:47:07]} {[%emt 00:02:18]}
25. Be2 {[%clk 00:26:43]} {[%emt 00:02:13]} b6 {[%clk 00:45:42]} {[%emt
00:01:56]} 26. cxb6 {[%clk 00:25:37]} {[%emt 00:01:36]} axb6 {[%clk 00:45:05]}
{[%emt 00:01:06]} 27. Qxb6 {[%clk 00:24:31]} {[%emt 00:01:36]} Rc2 {[%clk
00:44:51]} {[%emt 00:00:44]} 28. Qb1 {[%clk 00:17:17]} {[%emt 00:07:43]} Rfc8
{[%clk 00:44:36]} {[%emt 00:00:45]} 29. Qb7 {[%clk 00:15:24]} {[%emt 00:02:24]}
R8c7 {[%clk 00:44:54]} {[%emt 00:00:12]} 30. Qb5 {[%clk 00:15:22]} {[%emt
00:00:32]} Bg4 {[%clk 00:43:10]} {[%emt 00:02:14]} 31. Bf2 {[%clk 00:10:30]}
{[%emt 00:05:21]} Bf3 {[%clk 00:42:18]} {[%emt 00:01:23]} 32. Bxf3 {[%clk
00:06:34]} {[%emt 00:04:26]} exf3 {[%clk 00:39:47]} {[%emt 00:03:00]} 33. Qd3+
{[%clk 00:07:00]} {[%emt 00:00:05]} Kh8 {[%clk 00:35:02]} {[%emt 00:05:15]} 34.
Qxf3 {[%clk 00:07:24]} {[%emt 00:00:05]} Ng4 {[%clk 00:34:44]} {[%emt
00:00:47]} 35. Re2 {[%clk 00:05:48]} {[%emt 00:02:07]} Qxf1+ {[%clk 00:33:49]}
{[%emt 00:01:25]} 36. Kxf1 {[%clk 00:06:09]} {[%emt 00:00:09]} Nxh2+ {[%clk
00:34:11]} {[%emt 00:00:08]} 37. Kg2 {[%clk 00:06:28]} {[%emt 00:00:11]} Nxf3
{[%clk 00:34:18]} {[%emt 00:00:24]} 38. Kxf3 {[%clk 00:01:23]} {[%emt
00:05:36]} R7c3+ {[%clk 00:34:02]} {[%emt 00:00:46]} 39. Re3 {[%clk 00:00:47]}
Rxe3+ {[%clk 00:34:24]} {[%emt 00:01:13]} 40. Bxe3 {[%clk 00:00:51]} {[%emt
00:00:26]} Rc3 {[%clk 00:33:54]} {[%emt 00:01:01]} 41. f5 {[%clk 00:25:36]}
{[%emt 00:05:45]} Rxa3 {[%clk 01:01:57]} {[%emt 00:02:27]} 42. fxe6 {[%clk
00:24:14]} {[%emt 00:01:52]} fxe6 {[%clk 01:02:22]} {[%emt 00:00:06]} 43. Ke4
{[%clk 00:23:07]} {[%emt 00:01:36]} Kg7 {[%clk 01:02:29]} {[%emt 00:00:22]} 44.
Bf4 {[%clk 00:21:42]} {[%emt 00:01:55]} Ra5 {[%clk 01:02:43]} {[%emt 00:00:16]}
45. Bd2 {[%clk 00:19:48]} {[%emt 00:02:24]} Rb5 {[%clk 01:01:19]} {[%emt
00:01:54]} 46. Bf4 {[%clk 00:19:52]} {[%emt 00:00:26]} h5 {[%clk 00:57:12]}
{[%emt 00:04:37]} 47. Be5+ {[%clk 00:17:52]} {[%emt 00:02:31]} Kg6 {[%clk
00:57:27]} {[%emt 00:00:15]} 48. Bf4 {[%clk 00:18:13]} {[%emt 00:00:08]} Kf6
{[%clk 00:56:42]} {[%emt 00:01:15]} 49. Be3 {[%clk 00:18:14]} {[%emt 00:00:30]}
Rb1 {[%clk 00:55:37]} {[%emt 00:01:34]} 50. Bf4 {[%clk 00:14:04]} {[%emt
00:04:40]} Re1+ {[%clk 00:55:59]} {[%emt 00:00:08]} 51. Be3 {[%clk 00:14:08]}
{[%emt 00:00:26]} Re2 {[%clk 00:53:04]} {[%emt 00:03:25]} 52. Kf3 {[%emt
00:00:56]} Rh2 {[%clk 00:52:56]} 53. Ke4 {[%clk 00:14:37]} {[%emt 00:00:12]} h4
{[%clk 00:52:42]} {[%emt 00:00:44]} 54. gxh4 {[%clk 00:13:47]} {[%emt
00:01:20]} Rxh4+ {[%clk 00:53:07]} {[%emt 00:00:05]} 55. Bf4 {[%clk 00:12:33]}
{[%emt 00:01:45]} Rg4 {[%clk 00:53:28]} {[%emt 00:00:09]} 56. Ke3 {[%clk
00:12:18]} {[%emt 00:00:45]} Kf5 {[%clk 00:53:48]} {[%emt 00:00:10]} 57. Bb8
{[%clk 00:12:21]} {[%emt 00:00:27]} Rg1 {[%clk 00:53:27]} {[%emt 00:00:51]} 58.
Bd6 {[%clk 00:12:09]} {[%emt 00:00:41]} Rh1 {[%clk 00:53:08]} {[%emt 00:00:49]}
59. Kd3 {[%clk 00:11:18]} {[%emt 00:01:22]} Rh3+ {[%clk 00:52:55]} {[%emt
00:00:43]} 60. Kc4 {[%clk 00:11:40]} {[%emt 00:00:08]} Ke4 {[%clk 00:52:46]}
{[%emt 00:00:39]} 61. Be5 {[%clk 00:10:59]} {[%emt 00:01:11]} Rh5 {[%clk
00:52:33]} {[%emt 00:00:42]} 62. Bf6 {[%clk 00:09:09]} {[%emt 00:02:20]} Rd5
{[%clk 00:52:15]} {[%emt 00:00:49]} 63. Bg7 {[%clk 00:09:06]} {[%emt 00:00:34]}
Rd8 {[%clk 00:52:20]} {[%emt 00:00:24]} 64. Kc5 {[%clk 00:09:04]} {[%emt
00:00:32]} Kd3 {[%clk 00:52:33]} {[%emt 00:00:16]} 65. Be5 {[%clk 00:03:58]}
{[%emt 00:05:37]} Rd5+ {[%clk 00:52:53]} {[%emt 00:00:10]} 66. Kc6 {[%clk
00:04:18]} {[%emt 00:00:10]} Rxd4 {[%clk 00:53:08]} {[%emt 00:00:16]} 0-1

[Event "30e Open International de Saint Affrique"]
[Site "Saint Affrique, France"]
[Date "2024.07.22"]
[Round "4.3"]
[White "Siva Kumar, Nirish"]
[Black "Toulzac, Pierre-Yves"]
[Result "1/2-1/2"]
[TimeControl "1h30/40 + 30min + sec/mv"]
[BlackTitle "FM"]
[WhiteElo "1954"]
[BlackElo "2088"]

1. e4 {[%clk 01:29:44]} {[%emt 00:01:16]} g6 {[%clk 01:30:24]} {[%emt
00:00:37]} 2. d4 {[%clk 01:30:08]} {[%emt 00:00:06]} Bg7 {[%clk 01:30:52]}
{[%emt 00:00:02]} 3. Nc3 {[%clk 01:30:31]} {[%emt 00:00:07]} d6 {[%clk
01:31:20]} {[%emt 00:00:02]} 4. Be3 {[%clk 01:30:52]} {[%emt 00:00:09]} a6
{[%clk 01:31:37]} {[%emt 00:00:13]} 5. Qd2 {[%clk 01:31:14]} {[%emt 00:00:07]}
b5 {[%clk 01:32:00]} {[%emt 00:00:07]} 6. h4 {[%clk 01:31:40]} {[%emt
00:00:04]} h6 {[%clk 01:31:36]} {[%emt 00:00:53]} 7. O-O-O {[%clk 01:29:21]}
{[%emt 00:02:49]} Bb7 {[%clk 01:31:26]} {[%emt 00:00:41]} 8. f3 {[%clk
01:29:40]} {[%emt 00:00:11]} Nd7 {[%clk 01:31:39]} {[%emt 00:00:17]} 9. Nh3
{[%clk 01:28:01]} {[%emt 00:02:09]} Rc8 {[%clk 01:31:35]} {[%emt 00:00:34]} 10.
Kb1 {[%clk 01:26:35]} {[%emt 00:01:56]} c5 {[%clk 01:30:25]} {[%emt 00:01:41]}
11. dxc5 {[%clk 01:22:14]} {[%emt 00:04:51]} Nxc5 {[%clk 01:28:18]} {[%emt
00:02:37]} 12. Nf2 {[%clk 01:17:17]} {[%emt 00:05:27]} Qa5 {[%clk 01:21:20]}
{[%emt 00:07:28]} 13. Bd4 {[%clk 01:12:12]} {[%emt 00:05:35]} Nf6 {[%clk
01:16:55]} {[%emt 00:04:54]} 14. Ng4 {[%clk 01:10:04]} {[%emt 00:02:39]} Ncd7
{[%clk 01:04:04]} {[%emt 00:13:21]} 15. a3 {[%clk 01:05:09]} {[%emt 00:05:25]}
h5 {[%clk 00:54:09]} {[%emt 00:10:23]} 16. Bxf6 {[%clk 01:02:48]} {[%emt
00:02:52]} Nxf6 {[%clk 00:51:12]} {[%emt 00:03:27]} 17. Nxf6+ {[%clk 01:03:07]}
{[%emt 00:00:11]} Bxf6 {[%clk 00:49:38]} {[%emt 00:02:04]} 18. Nd5 {[%clk
01:03:25]} {[%emt 00:00:11]} Qxd2 {[%clk 00:49:58]} {[%emt 00:00:10]} 19. Nxf6+
{[%clk 01:03:51]} {[%emt 00:00:05]} exf6 {[%clk 00:50:24]} {[%emt 00:00:03]} 20.
Rxd2 {[%clk 01:04:01]} {[%emt 00:00:19]} Ke7 {[%clk 00:50:24]} {[%emt
00:00:30]} 21. Be2 {[%clk 01:04:25]} {[%emt 00:00:05]} Rc6 {[%clk 00:39:03]}
{[%emt 00:16:48]} 22. f4 {[%clk 01:03:43]} Rb6 {[%clk 00:39:16]} 23. Bf3 {[%clk
01:04:05]} f5 {[%clk 00:33:21]} {[%emt 00:03:05]} 24. exf5 {[%clk 01:03:53]}
{[%emt 00:00:42]} Bxf3 {[%clk 00:33:48]} {[%emt 00:00:03]} 25. gxf3 {[%clk
01:04:09]} {[%emt 00:00:14]} gxf5 {[%clk 00:34:08]} {[%emt 00:00:10]} 26. Rg1
{[%clk 01:04:33]} {[%emt 00:00:06]} Rc6 {[%clk 00:31:37]} {[%emt 00:03:00]} 27.
Rg5 {[%clk 01:04:08]} {[%emt 00:00:55]} Ke6 {[%clk 00:31:12]} {[%emt 00:00:56]}
28. b3 {[%clk 01:03:30]} {[%emt 00:01:08]} Rc3 {[%clk 00:29:15]} {[%emt
00:02:27]} 29. Re2+ {[%clk 01:03:52]} {[%emt 00:00:08]} Kf6 {[%clk 00:29:11]}
{[%emt 00:00:34]} 30. Rg3 {[%clk 01:04:16]} {[%emt 00:00:06]} a5 {[%clk
00:24:45]} {[%emt 00:04:56]} 31. Rd2 {[%clk 01:04:36]} {[%emt 00:00:10]} Ke6
{[%clk 00:24:50]} {[%emt 00:00:26]} 32. Re2+ {[%clk 01:05:01]} {[%emt
00:00:05]} Kf6 {[%clk 00:25:14]} {[%emt 00:00:05]} 33. Rd2 {[%clk 01:05:28]}
{[%emt 00:00:03]} Ke6 {[%clk 00:25:36]} {[%emt 00:00:08]} 34. Re2+ {[%clk
01:05:55]} {[%emt 00:00:04]} 1/2-1/2

[Event "30e Open International de Saint Affrique"]
[Site "Saint Affrique, France"]
[Date "2024.07.22"]
[Round "4.4"]
[White "Degraeve, Jean-Marc"]
[Black "Gibaud, Elian"]
[Result "1-0"]
[TimeControl "1h30/40 + 30min + sec/mv"]
[WhiteTitle "GM"]
[WhiteElo "2480"]
[BlackElo "2061"]

1. e4 {[%clk 01:26:52]} {[%emt 00:04:07]} c5 {[%clk 01:30:47]} {[%emt
00:00:13]} 2. Nf3 {[%clk 01:27:07]} {[%emt 00:00:15]} e6 {[%clk 01:31:04]}
{[%emt 00:00:12]} 3. c3 {[%clk 01:27:25]} {[%emt 00:00:13]} Nf6 {[%clk
01:31:16]} {[%emt 00:00:16]} 4. e5 {[%clk 01:27:49]} {[%emt 00:00:07]} Nd5
{[%clk 01:31:38]} {[%emt 00:00:07]} 5. Bc4 {[%clk 01:28:07]} {[%emt 00:00:13]}
Nb6 {[%clk 01:31:37]} {[%emt 00:00:31]} 6. Bb3 {[%clk 01:28:29]} {[%emt
00:00:08]} d6 {[%clk 01:31:53]} {[%emt 00:00:13]} 7. O-O {[%clk 01:27:22]}
{[%emt 00:01:38]} Nc6 {[%clk 01:31:32]} {[%emt 00:00:51]} 8. exd6 {[%clk
01:24:10]} {[%emt 00:03:42]} Bxd6 {[%clk 01:31:39]} {[%emt 00:00:22]} 9. d4
{[%clk 01:24:30]} {[%emt 00:00:12]} O-O {[%clk 01:31:42]} {[%emt 00:00:25]} 10.
dxc5 {[%clk 01:23:59]} {[%emt 00:01:03]} Bxc5 {[%clk 01:31:59]} {[%emt
00:00:12]} 11. Qe2 {[%clk 01:23:47]} {[%emt 00:00:44]} Qc7 {[%clk 01:31:44]}
{[%emt 00:00:44]} 12. Nbd2 {[%clk 01:20:34]} {[%emt 00:03:43]} Be7 {[%clk
01:24:13]} {[%emt 00:07:59]} 13. Re1 {[%clk 01:20:04]} {[%emt 00:01:01]} a5
{[%clk 01:21:58]} {[%emt 00:02:44]} 14. a4 {[%clk 01:19:43]} {[%emt 00:00:52]}
Rd8 {[%clk 01:19:16]} {[%emt 00:03:12]} 15. Qe4 {[%clk 01:15:55]} {[%emt
00:04:18]} Nd5 {[%clk 01:17:32]} {[%emt 00:02:14]} 16. Nc4 {[%clk 01:15:57]}
{[%emt 00:00:28]} Nf6 {[%clk 01:01:06]} {[%emt 00:16:55]} 17. Qf4 {[%clk
01:03:31]} {[%emt 00:12:58]} Qxf4 {[%clk 00:57:25]} {[%emt 00:04:11]} 18. Bxf4
{[%clk 01:03:59]} {[%emt 00:00:02]} Nd5 {[%clk 00:56:42]} {[%emt 00:01:12]} 19.
Bg3 {[%clk 01:04:25]} {[%emt 00:00:05]} Bd7 {[%clk 00:54:26]} {[%emt 00:02:45]}
20. Rad1 {[%clk 00:58:47]} {[%emt 00:06:08]} Be8 {[%clk 00:51:47]} {[%emt
00:03:09]} 21. h3 {[%clk 00:58:19]} {[%emt 00:00:59]} Kf8 {[%clk 00:50:56]}
{[%emt 00:11:49]} 22. Nfd2 {[%clk 00:57:39]} Nb8 {[%clk 00:43:47]} 23. Ne4
{[%clk 00:49:16]} {[%emt 00:07:14]} Nd7 {[%clk 00:40:56]} {[%emt 00:03:20]} 24.
Ncd6 {[%clk 00:48:35]} {[%emt 00:01:12]} Nc5 {[%clk 00:32:52]} {[%emt
00:08:33]} 25. Bxd5 {[%clk 00:45:53]} {[%emt 00:03:12]} exd5 {[%clk 00:32:40]}
{[%emt 00:00:41]} 26. Nxc5 {[%clk 00:46:08]} {[%emt 00:00:16]} Bxd6 {[%clk
00:31:08]} {[%emt 00:02:02]} 27. Nxb7 {[%clk 00:46:10]} {[%emt 00:00:29]} Bxg3
{[%clk 00:29:00]} {[%emt 00:02:37]} 28. Nxd8 {[%clk 00:45:58]} {[%emt
00:00:43]} Bd6 {[%clk 00:27:17]} {[%emt 00:02:13]} 29. Nb7 {[%clk 00:39:23]}
{[%emt 00:07:06]} Be7 {[%clk 00:25:40]} {[%emt 00:02:06]} 30. Rxd5 {[%clk
00:38:50]} {[%emt 00:01:04]} Bc6 {[%clk 00:25:17]} {[%emt 00:00:52]} 31. Rdd1
{[%clk 00:38:31]} {[%emt 00:00:49]} Bxa4 {[%clk 00:23:51]} {[%emt 00:01:56]} 32.
Ra1 {[%clk 00:38:11]} {[%emt 00:00:51]} 1-0

[Event "30e Open International de Saint Affrique"]
[Site "Saint Affrique, France"]
[Date "2024.07.22"]
[Round "4.5"]
[White "RIgaud-Retourne, Mael"]
[Black "Le Roux, Jean-Pierre"]
[Result "0-1"]
[TimeControl "1h30/40 + 30min + sec/mv"]
[BlackTitle "GM"]
[WhiteElo "2048"]
[BlackElo "2480"]

1. d4 {[%clk 01:30:57]} {[%emt 00:00:03]} g6 {[%clk 01:26:29]} {[%emt
00:04:31]} 2. Bf4 {[%clk 01:30:41]} {[%emt 00:00:46]} Bg7 {[%clk 01:24:10]}
{[%emt 00:02:49]} 3. Nc3 {[%clk 01:30:20]} {[%emt 00:00:51]} a6 {[%clk
01:22:42]} {[%emt 00:01:59]} 4. e4 {[%clk 01:26:47]} {[%emt 00:04:03]} d6
{[%clk 01:15:08]} {[%emt 00:08:04]} 5. h4 {[%clk 01:19:29]} {[%emt 00:07:47]}
h5 {[%clk 01:04:56]} {[%emt 00:10:43]} 6. Qd2 {[%clk 01:08:27]} {[%emt
00:11:32]} b5 {[%clk 01:01:24]} {[%emt 00:04:02]} 7. f3 {[%clk 01:07:29]}
{[%emt 00:01:28]} Nd7 {[%clk 00:55:47]} {[%emt 00:06:06]} 8. O-O-O {[%clk
00:53:10]} {[%emt 00:14:48]} Nb6 {[%clk 00:49:21]} {[%emt 00:06:56]} 9. Kb1
{[%clk 00:43:21]} {[%emt 00:16:11]} b4 {[%clk 00:32:03]} {[%emt 00:11:56]} 10.
Nce2 {[%clk 00:42:54]} {[%emt 00:00:57]} c5 {[%clk 00:25:45]} {[%emt 00:06:49]}
11. e5 {[%clk 00:27:42]} {[%emt 00:15:42]} Be6 {[%clk 00:17:30]} {[%emt
00:08:45]} 12. Nc1 {[%clk 00:22:45]} {[%emt 00:05:26]} c4 {[%clk 00:14:21]}
{[%emt 00:03:39]} 13. exd6 {[%clk 00:16:45]} {[%emt 00:06:31]} Nf6 {[%clk
00:10:01]} {[%emt 00:04:50]} 14. Qxb4 {[%clk 00:14:13]} {[%emt 00:03:02]} Nfd5
{[%clk 00:10:07]} {[%emt 00:00:24]} 15. dxe7 {[%clk 00:14:08]} {[%emt
00:00:35]} Qd7 {[%clk 00:08:20]} {[%emt 00:02:17]} 16. Qd6 {[%clk 00:10:33]}
{[%emt 00:04:05]} Nxf4 {[%clk 00:08:39]} {[%emt 00:00:11]} 17. Qxf4 {[%clk
00:10:54]} {[%emt 00:00:08]} Nd5 {[%clk 00:08:41]} {[%emt 00:00:29]} 18. Qd2
{[%clk 00:07:24]} {[%emt 00:04:00]} Bh6 {[%clk 00:08:28]} {[%emt 00:00:43]} 19.
Qa5 {[%clk 00:07:34]} {[%emt 00:00:20]} Qb5 {[%clk 00:07:51]} {[%emt 00:01:07]}
20. Qxb5+ {[%clk 00:06:01]} {[%emt 00:02:03]} axb5 {[%clk 00:08:17]} {[%emt
00:00:03]} 21. Re1 {[%clk 00:06:02]} {[%emt 00:00:30]} Bd2 {[%clk 00:04:16]}
{[%emt 00:04:31]} 22. Re5 {[%clk 00:06:05]} {[%emt 00:00:26]} Bf4 {[%clk
00:04:10]} {[%emt 00:00:37]} 23. Nge2 {[%clk 00:04:22]} {[%emt 00:02:13]} Bxe5
{[%clk 00:04:03]} {[%emt 00:00:37]} 24. dxe5 {[%clk 00:04:51]} {[%emt
00:00:01]} Kxe7 {[%clk 00:02:56]} {[%emt 00:01:37]} 25. Nd4 {[%clk 00:05:06]}
{[%emt 00:00:14]} Ne3 {[%clk 00:02:42]} {[%emt 00:00:43]} 26. Nxb5 {[%clk
00:02:49]} {[%emt 00:02:48]} Rhd8 {[%clk 00:01:46]} {[%emt 00:01:26]} 27. Nc7
{[%clk 00:01:58]} {[%emt 00:01:21]} Bf5 {[%clk 00:00:46]} {[%emt 00:01:30]} 28.
Be2 {[%clk 00:00:47]} {[%emt 00:01:41]} Ra5 {[%clk 00:00:41]} {[%emt 00:00:35]}
0-1

[ePGN "0.1;DGT LiveChess/2.2.6"]